bitfinex-derivatives/quotes_SOLF0:USTF0_20250928
["timestamp","ask_amount","ask_price","bid_price","bid_amount"]
[1759091627938,7.54,207.38,207.33,8.01]
[1759091628144,1.66680738,207.39,207.33,8.01]
[1759091628346,9.20680738,207.39,207.33,8.01]
[1759091628939,7.54,207.39,207.33,8.01]
[1759091629145,7.54,207.39,207.33,9.67680738]
[1759091631043,7.54,207.39,207.33,8.01]
[1759091631647,4.3385,207.38,207.31,14.37126911]
[1759091631850,4.3385,207.38,207.28,4.02409336]
[1759091633651,9.00680738,207.38,207.29,7.36]
[1759091633847,9.00680738,207.38,207.29,11.38409336]
[1759091634547,4.3389,207.36,207.29,11.38409336]
[1759091634752,4.3389,207.36,207.29,7.36]
[1759091635853,4.3389,207.36,207.29,21.70373389]
[1759091638456,4.3389,207.36,207.3,7.36]
[1759091642259,9.00680738,207.38,207.3,7.36]
[1759091642948,7.34,207.31,207.29,14.34373389]
[1759091643259,7.34,207.31,207.23,7.36]
[1759091644259,11.6798,207.31,207.23,7.36]
[1759091646857,4.3402,207.3,207.23,7.36]
[1759091647857,7.34,207.31,207.23,22.0262346]
[1759091648156,1.66680738,207.29,207.23,22.0262346]
[1759091648556,7.34,207.26,207.23,22.0262346]
[1759091649260,4.3406,207.27,207.23,14.6662346]
[1759091649455,11.6806,207.27,207.23,7.36]
[1759091649650,11.6806,207.27,207.21,103.94]
[1759091649852,1.66680738,207.29,207.22,7.36]
[1759091650248,7.34,207.31,207.22,7.36]
[1759091651054,7.34,207.31,207.22,22.16004728]
[1759091651656,4.3404,207.29,207.22,22.16004728]
[1759091652862,4.3404,207.29,207.22,142.64004728]
[1759091654153,4.3406,207.27,207.22,135.28004728]
[1759091654350,11.9906,207.27,207.23,7.51]
[1759091654557,7.65,207.26,207.23,7.51]
[1759091655361,4.3411,207.25,207.23,7.51]
[1759091655553,7.65,207.25,207.17,68.52466286]
[1759091655757,7.65,207.25,207.18,120.48]
[1759091655963,4.3413,207.24,207.17,68.52466286]
[1759091656264,4.3413,207.24,207.17,189.00466286]
[1759091656660,7.65,207.25,207.17,189.00466286]
[1759091656862,7.65,207.25,207.18,7.51]
[1759091657665,67.5257,207.26,207.19,7.51]
[1759091657868,7.65,207.25,207.17,189.00466286]
[1759091658266,4.3417,207.23,207.17,189.00466286]
[1759091659868,4.3419,207.21,207.17,120.48]
[1759091660068,4.3419,207.21,207.18,7.51]
[1759091660263,7.65,207.24,207.18,7.51]
[1759091661263,7.65,207.24,207.18,21.78753764]
[1759091661570,11.9919,207.22,207.18,7.51]
[1759091662470,10.25743113,207.2,207.09,7.51]
[1759091662664,10.25743113,207.2,207.09,14.45170142]
[1759091662866,4.3427,207.17,207.1,7.51]
[1759091664164,4.3423,207.19,207.1,7.51]
[1759091664759,4.3427,207.18,207.1,7.51]
[1759091664962,7.62,207.2,207.11,120.48]
[1759091665771,7.62,207.18,207.1,7.51]
[1759091666172,4.3432,207.15,207.1,7.51]
[1759091666369,7.62,207.14,207.1,7.43]
[1759091666666,7.62,207.14,207.09,15.62274611]
[1759091666865,7.62,207.14,207.1,7.43]
[1759091667464,4.3432,207.15,207.1,7.43]
[1759091667668,4.3432,207.15,207.09,23.05274611]
[1759091669276,7.62,207.17,207.1,7.43]
[1759091669477,4.3427,207.18,207.1,7.43]
[1759091672582,4.343,207.16,207.1,7.43]
[1759091672774,4.343,207.16,207.1,127.91]
[1759091674975,7.62,207.18,207.1,127.91]
[1759091676079,7.62,207.18,207.1,7.43]
[1759091676273,7.62,207.18,207.1,127.91]
[1759091676880,7.62,207.18,207.1,7.43]
[1759091677577,4.3432,207.15,207.09,75.00274611]
[1759091677781,11.9632,207.15,207.09,82.43274611]
[1759091677981,7.62,207.19,207.1,7.43]
[1759091679089,7.62,207.17,207.1,7.43]
[1759091679689,4.3435,207.14,207.1,7.43]
[1759091679885,4.3435,207.14,207.09,75.00274611]
[1759091680089,4.3435,207.14,207.1,7.43]
[1759091680296,7.62,207.13,207.1,7.43]
[1759091680492,7.62,207.13,207.09,15.62274611]
[1759091680996,7.62,207.13,207.1,7.43]
[1759091681692,4.3435,207.14,207.09,15.62274611]
[1759091681895,11.9635,207.14,207.1,7.43]
[1759091688504,7.62,207.13,207.1,7.43]
[1759091689100,7.62,207.13,207.05,7.43]
[1759091689306,7.62,207.11,207.04,14.13943469]
[1759091689494,7.62,207.11,207.03,7.43]
[1759091689698,4.3448,207.08,207.03,7.43]
[1759091689898,4.3448,207.08,207.01,7.43]
[1759091689899,11.9648,207.08,207.01,7.43]
[1759091690094,2.60743113,207.13,207.01,7.43]
[1759091690095,7.62,207.13,207.01,7.43]
[1759091690902,4.3442,207.1,207.01,7.43]
[1759091691207,4.3442,207.1,207.02,7.43]
[1759091691402,4.3438,207.12,207.02,7.43]
[1759091692199,4.3441,207.11,207.02,7.43]
[1759091692506,7.62,207.13,207.02,7.43]
[1759091692896,4.3446,207.09,207.02,7.43]
[1759091693102,7.62,207.1,207.02,7.43]
[1759091693400,75.1952,207.11,207.02,7.43]
[1759091694101,4.345,207.07,207.02,7.43]
[1759091694406,7.84,207.06,207.02,7.43]
[1759091696300,4.345,207.07,207.02,7.43]
[1759091696502,7.84,207.06,207.02,7.43]
[1759091696696,67.578,207.1,207.02,7.43]
[1759091696697,4.3453,207.05,207.02,7.43]
[1759091696904,7.84,207.04,207.01,14.72090985]
[1759091697099,7.84,207.04,207.0,0.84044776]
[1759091697305,7.84,207.04,207.01,7.85]
[1759091697812,7.84,207.08,207.01,7.85]
[1759091698609,4.345,207.07,207.01,22.19430485]
[1759091699108,67.5837,207.08,207.01,22.19430485]
[1759091699406,67.5837,207.08,206.98,7.85]
[1759091699407,7.84,207.07,206.98,7.85]
[1759091700311,4.3455,207.04,206.98,7.85]
[1759091700908,12.1855,207.04,206.98,7.85]
[1759091701212,12.1855,207.04,206.94,128.29]
[1759091701213,7.84,207.03,206.94,128.29]
[1759091702713,4.3465,207.0,206.94,128.29]
[1759091704309,7.84,207.01,206.94,128.29]
[1759091704510,7.84,207.05,206.95,7.85]
[1759091705716,4.3455,207.04,206.95,7.85]
[1759091707211,7.84,207.05,206.95,7.85]
[1759091707510,7.84,207.05,206.96,2.60743113]
[1759091707715,7.84,207.05,206.97,7.85]
[1759091708613,12.1853,207.05,206.97,7.85]
[1759091709817,7.84,207.05,206.97,7.85]
[1759091710014,12.1848,207.08,206.97,7.85]
[1759091716211,12.1848,207.08,207.0,1.67162617]
[1759091716616,12.1848,207.08,207.0,9.47162617]
[1759091719717,12.0251,207.06,207.0,9.47162617]
[1759091720020,7.68,207.06,207.0,9.47162617]
[1759091720711,7.68,207.06,206.98,1.67162617]
[1759091721316,67.5778,207.1,206.97,7.8]
[1759091721317,7.68,207.04,206.97,7.8]
[1759091721624,7.68,207.02,206.96,91.36]
[1759091721826,7.68,207.02,206.94,23.33916205]
[1759091722222,1.67162617,207.03,206.94,23.33916205]
[1759091722526,7.68,207.02,206.94,23.33916205]
[1759091723524,4.3461,207.01,206.94,23.33916205]
[1759091725321,7.59,207.0,206.94,23.33916205]
[1759091726024,7.59,206.98,206.94,15.53916205]
[1759091726230,6.01822617,206.99,206.94,15.53916205]
[1759091726633,7.59,207.01,206.94,15.53916205]
[1759091727334,7.59,207.01,206.92,7.53]
[1759091728231,1.67162617,206.99,206.9,0.84088438]
[1759091728436,7.59,206.98,206.91,7.53]
[1759091728926,7.59,207.01,206.93,7.53]
[1759091729125,7.59,207.01,206.95,7.53]
[1759091735453,9.26162617,207.05,206.95,7.53]
[1759091735658,67.5734,207.12,206.95,7.53]
[1759091735659,7.59,207.21,206.95,7.53]
[1759091735957,9.26162617,207.19,207.08,7.53]
[1759091736254,7.59,207.19,207.09,7.53]
[1759091736447,9.26162617,207.19,207.09,7.53]
[1759091736643,7.59,207.19,207.09,7.53]
[1759091736843,9.26162617,207.19,207.09,7.53]
[1759091737348,7.59,207.19,207.12,7.53]
[1759091738047,7.59,207.25,207.12,7.53]
[1759091738249,1.67162617,207.23,207.13,1.67162617]
[1759091738453,1.67162617,207.23,207.14,7.53]
[1759091738850,1.67162617,207.23,207.15,3.79693688]
[1759091739155,4.341,207.26,207.16,3.79693688]
[1759091739359,1.67162617,207.24,207.17,3.79693688]
[1759091739556,1.67162617,207.24,207.18,3.79693688]
[1759091739751,1.67162617,207.24,207.19,3.79693688]
[1759091740056,1.67162617,207.24,207.14,7.53]
[1759091740057,7.59,207.23,207.2,3.79693688]
[1759091740253,7.59,207.23,207.21,3.79693688]
[1759091740451,7.59,207.23,207.22,3.79693688]
[1759091740854,7.59,207.23,207.22,3.00288156]
[1759091741045,6.01302617,207.24,207.1,31.30744955]
[1759091741244,1.67162617,207.19,207.1,34.82162617]
[1759091741461,9.26162617,207.19,207.1,34.82162617]
[1759091742960,9.26162617,207.19,207.1,13.21744955]
[1759091743151,9.26162617,207.19,207.1,127.83]
[1759091743753,1.67162617,207.17,207.1,7.53]
[1759091744260,7.59,207.19,207.1,7.53]
[1759091744758,9.26162617,207.19,207.1,9.20162617]
[1759091746756,7.59,207.27,207.17,67.5541]
[1759091747057,7.59,207.47,207.32,67.505]
[1759091747255,7.59,207.47,207.37,7.53]
[1759091747450,351.4,207.61,207.42,1.67162617]
[1759091747451,7.59,207.6,207.42,1.67162617]
[1759091747649,7.59,207.56,207.43,7.53]
[1759091747857,1520.55,207.76,207.44,67.4654]
[1759091748058,7.59,207.69,207.5,1.67162617]
[1759091748263,7.59,207.69,207.54,7.53]
[1759091748560,7.59,207.69,207.56,4.40922228]
[1759091748860,7.59,207.79,207.64,4.40922228]
[1759091749058,7.59,207.8,207.64,95.04]
[1759091749354,7.59,207.8,207.65,7.53]
[1759091749756,7.59,207.8,207.67,4.40922228]
[1759091749958,7.59,207.8,207.68,7.53]
[1759091750152,7.59,207.8,207.66,4.40922228]
[1759091750352,67.344,207.82,207.63,4.40922228]
[1759091750560,7.59,207.8,207.64,30.1]
[1759091750762,7.59,207.8,207.62,11.93922228]
[1759091750951,7.59,207.8,207.62,7.53]
[1759091751151,67.3628,207.76,207.61,37.85221326]
[1759091751356,119.51,207.75,207.56,7.53]
[1759091751668,119.51,207.75,207.57,39.51960713]
[1759091751958,86.96,207.79,207.6,7.53]
[1759091752150,7.59,207.78,207.64,7.53]
[1759091752351,7.59,207.78,207.66,7.53]
[1759091752655,7.59,207.83,207.63,47.84]
[1759091752857,7.59,207.8,207.68,7.53]
[1759091753352,7.59,207.85,207.68,4.40922228]
[1759091753552,7.59,207.85,207.69,7.53]
[1759091753764,22.14544944,207.81,207.69,7.53]
[1759091754163,89.49204944,207.81,207.64,11.93922228]
[1759091754354,67.3528,207.79,207.64,11.93922228]
[1759091754554,7.23,207.76,207.64,7.53]
[1759091755459,7.23,207.72,207.57,8.13084547]
[1759091755655,7.23,207.7,207.57,7.53]
[1759091757162,67.3919,207.67,207.55,53.36]
[1759091757362,7.23,207.66,207.55,53.36]
[1759091759165,7.23,207.66,207.52,7.53]
[1759091759166,67.3993,207.65,207.52,7.53]
[1759091759470,7.23,207.66,207.52,7.53]
[1759091759865,67.3703,207.74,207.54,7.53]
[1759091759866,36.11,207.71,207.54,7.53]
[1759091760260,7.23,207.71,207.54,7.53]
[1759091760460,124.98,207.7,207.54,7.53]
[1759091760663,7.23,207.69,207.54,7.53]
[1759091760869,7.23,207.63,207.49,7.53]
[1759091761065,67.4212,207.58,207.44,7.53]
[1759091761268,4.3346,207.56,207.39,11.93922228]
[1759091761564,67.4406,207.52,207.39,7.53]
[1759091761762,7.23,207.51,207.35,61.92]
[1759091761970,7.23,207.51,207.37,4.40922228]
[1759091762170,7.23,207.51,207.38,7.53]
[1759091765068,7.23,207.51,207.38,11.93922228]
[1759091766666,7.23,207.6,207.47,4.40922228]
[1759091766870,7.23,207.6,207.48,7.53]
[1759091768175,0.4468187,207.61,207.52,7.53]
[1759091768879,7.6768187,207.61,207.51,4.40922228]
[1759091769274,7.23,207.59,207.47,11.93922228]
[1759091769872,86.47,207.59,207.47,11.93922228]
[1759091770378,7.23,207.58,207.44,4.40922228]
[1759091771076,114.52,207.57,207.44,4.40922228]
[1759091771678,7.23,207.58,207.44,4.40922228]
[1759091771679,125.08,207.56,207.45,7.76]
[1759091771868,7.23,207.58,207.45,7.76]
[1759091772380,50.12,207.57,207.45,7.76]
[1759091772771,7.51,207.56,207.44,4.40922228]
[1759091772973,74.9387,207.56,207.4,12.16922228]
[1759091773172,4.3352,207.53,207.41,4.08624709]
[1759091773376,4.3352,207.53,207.36,36.44922228]
[1759091773583,7.51,207.52,207.37,4.08663127]
[1759091773879,7.51,207.52,207.38,4.08663127]
[1759091774078,7.51,207.52,207.39,4.08663127]
[1759091774279,7.51,207.52,207.4,4.08663127]
[1759091774481,7.51,207.52,207.41,4.08663127]
[1759091774677,7.51,207.52,207.36,36.44922228]
[1759091774878,7.51,207.52,207.37,4.09090959]
[1759091775072,7.51,207.52,207.38,4.09090959]
[1759091775278,7.51,207.52,207.39,4.09090959]
[1759091775475,7.51,207.52,207.36,36.44922228]
[1759091775476,7.51,207.52,207.4,4.09090959]
[1759091775677,7.51,207.52,207.41,11.85090959]
[1759091775875,37.35,207.52,207.42,4.09090959]
[1759091776578,4.334,207.59,207.42,4.09090959]
[1759091776780,7.51,207.58,207.43,11.85090959]
[1759091776979,7.51,207.58,207.45,7.76]
[1759091777179,99.87,207.58,207.46,4.09090959]
[1759091777782,7.51,207.58,207.46,4.09090959]
[1759091778185,92.42,207.57,207.47,4.09090959]
[1759091778374,92.42,207.57,207.48,4.09090959]
[1759091778577,92.42,207.57,207.49,4.09090959]
[1759091778780,7.51,207.58,207.45,7.76]
[1759091778983,7.51,207.58,207.46,4.10620961]
[1759091779182,92.32,207.57,207.47,4.10620961]
[1759091779378,92.32,207.57,207.48,4.10620961]
[1759091779579,92.32,207.57,207.49,4.10620961]
[1759091779779,92.32,207.57,207.45,7.76]
[1759091780085,92.32,207.57,207.46,4.1123173]
[1759091780386,7.51,207.55,207.47,4.1123173]
[1759091780586,7.51,207.55,207.48,4.1123173]
[1759091780780,7.51,207.55,207.49,4.1123173]
[1759091781076,7.51,207.55,207.4,7.76]
[1759091781386,7.51,207.55,207.41,4.12290822]
[1759091781581,7.51,207.55,207.42,4.12290822]
[1759091781781,7.51,207.55,207.43,4.12290822]
[1759091781983,7.51,207.55,207.44,4.12290822]
[1759091782177,7.51,207.55,207.45,4.12290822]
[1759091782377,7.51,207.55,207.46,4.12290822]
[1759091782583,7.51,207.53,207.47,4.12290822]
[1759091782781,67.4347,207.54,207.4,11.4442205]
[1759091783088,7.51,207.53,207.41,4.13061814]
[1759091783282,7.51,207.53,207.42,4.13061814]
[1759091783482,7.51,207.53,207.43,4.13061814]
[1759091783784,7.44,207.49,207.44,4.13061814]
[1759091783990,124.56,207.48,207.36,3.6842205]
[1759091784193,124.56,207.48,207.37,4.13639222]
[1759091784395,124.56,207.48,207.38,4.13639222]
[1759091784691,128.8963,207.48,207.39,4.13639222]
[1759091784882,128.8963,207.48,207.4,4.13639222]
[1759091785087,128.8963,207.48,207.41,4.13639222]
[1759091785286,128.8963,207.48,207.42,4.13639222]
[1759091785487,7.44,207.46,207.43,4.13639222]
[1759091785695,7.44,207.46,207.44,4.13639222]
[1759091785888,7.44,207.46,207.45,4.13639222]
[1759091786085,97.48,207.47,207.45,4.13639222]
[1759091786393,131.88,207.47,207.46,4.13639222]
[1759091787383,132.36,207.47,207.46,4.13639222]
[1759091787891,7.44,207.44,207.38,3.71582203]
[1759091788088,7.44,207.44,207.35,3.71582203]
[1759091788289,7.44,207.44,207.36,3.71582203]
[1759091788487,67.4476,207.5,207.37,3.71582203]
[1759091788488,7.44,207.5,207.37,3.71582203]
[1759091788687,7.44,207.5,207.38,11.04582203]
[1759091788896,124.38,207.49,207.39,3.71582203]
[1759091789095,124.38,207.49,207.4,3.71582203]
[1759091789290,4.3363,207.48,207.41,3.71582203]
[1759091789490,4.3363,207.48,207.42,3.71582203]
[1759091789689,131.84,207.47,207.43,3.71582203]
[1759091789896,124.4,207.47,207.38,7.33]
[1759091790197,124.36,207.46,207.39,3.73111205]
[1759091790486,124.34,207.45,207.4,11.06111205]
[1759091790688,11.7763,207.48,207.41,3.73111205]
[1759091790887,124.32,207.47,207.42,3.73111205]
[1759091791088,7.44,207.46,207.43,3.73111205]
[1759091791289,7.44,207.46,207.44,3.73111205]
[1759091791499,7.44,207.46,207.45,3.73111205]
[1759091791893,4.3371,207.44,207.38,4.01582338]
[1759091792193,7.44,207.43,207.39,3.74554515]
[1759091792394,7.44,207.43,207.4,3.74554515]
[1759091792593,4.3371,207.44,207.41,3.74554515]
[1759091792896,7.44,207.43,207.42,3.74554515]
[1759091794384,131.58,207.43,207.42,3.74554515]
[1759091794796,7.44,207.43,207.42,3.74554515]
[1759091794991,7.44,207.49,207.42,3.74554515]
[1759091795197,7.44,207.47,207.37,7.33]
[1759091795398,7.44,207.47,207.38,3.74631906]
[1759091795599,7.44,207.47,207.39,3.74631906]
[1759091795895,7.44,207.47,207.4,3.74631906]
[1759091796098,7.44,207.44,207.41,3.74631906]
[1759091796396,124.06,207.43,207.42,3.74631906]
[1759091796596,131.5,207.43,207.42,3.74631906]
[1759091797093,7.44,207.48,207.42,3.74631906]
[1759091797396,131.42,207.47,207.43,3.75122916]
[1759091797593,135.7565,207.47,207.37,11.34582338]
[1759091797788,131.42,207.47,207.38,7.76674244]
[1759091797994,131.42,207.47,207.39,3.75091906]
[1759091798199,131.42,207.47,207.4,3.75091906]
[1759091798393,123.96,207.46,207.41,3.75091906]
[1759091798590,123.96,207.46,207.42,3.75091906]
[1759091798795,123.96,207.46,207.37,7.33]
[1759091799100,7.44,207.47,207.37,7.33]
[1759091799399,123.88,207.46,207.37,7.33]
[1759091799793,123.88,207.46,207.38,4.14208554]
[1759091799989,123.88,207.46,207.39,4.14208554]
[1759091800195,123.88,207.46,207.4,4.14208554]
[1759091800397,131.32,207.46,207.41,4.14208554]
[1759091800594,131.32,207.46,207.42,4.14208554]
[1759091800793,131.32,207.46,207.43,4.14208554]
[1759091800994,131.32,207.46,207.44,4.14208554]
[1759091801300,131.32,207.46,207.45,4.14208554]
[1759091801697,7.44,207.46,207.45,4.14208554]
[1759091801897,131.24,207.46,207.45,4.14208554]
[1759091802600,131.24,207.46,207.37,7.33]
[1759091802799,123.78,207.45,207.37,7.33]
[1759091803202,128.117,207.45,207.37,7.33]
[1759091803901,4.3373,207.44,207.37,7.33]
[1759091804896,4.3376,207.42,207.37,7.33]
[1759091805097,7.44,207.41,207.33,7.33]
[1759091805297,123.62,207.4,207.33,7.33]
[1759091806199,7.44,207.46,207.33,7.33]
[1759091806605,4.3375,207.43,207.33,7.33]
[1759091807306,123.56,207.42,207.33,7.33]
[1759091807700,4.3378,207.41,207.33,7.33]
[1759091808500,123.46,207.4,207.33,7.33]
[1759091809401,4.3378,207.41,207.33,7.33]
[1759091809599,4.3384,207.38,207.33,7.33]
[1759091809800,11.7784,207.38,207.33,7.33]
[1759091810295,7.44,207.38,207.32,21.65359831]
[1759091810505,7.44,207.38,207.32,7.33]
[1759091810698,123.44,207.4,207.32,7.33]
[1759091811600,123.3,207.39,207.32,7.33]
[1759091813508,123.3,207.39,207.32,21.71648697]
[1759091813702,123.14,207.38,207.32,21.71648697]
[1759091815907,123.02,207.38,207.32,21.71648697]
[1759091816113,7.89,207.39,207.32,21.71648697]
[1759091816409,116.52,207.38,207.32,21.71648697]
[1759091816609,7.89,207.39,207.32,21.71648697]
[1759091816802,122.96,207.38,207.32,21.71648697]
[1759091817109,7.89,207.39,207.32,21.71648697]
[1759091817311,122.92,207.38,207.32,21.71648697]
[1759091817701,7.89,207.39,207.32,21.71648697]
[1759091818008,122.9,207.38,207.32,21.71648697]
[1759091819911,122.9,207.38,207.32,14.38648697]
[1759091820106,122.9,207.38,207.28,38.05582338]
[1759091820307,7.89,207.37,207.28,25.86899743]
[1759091821720,38.76,207.36,207.28,25.86899743]
[1759091822710,7.89,207.35,207.28,18.48899743]
[1759091822913,67.4871,207.38,207.28,18.48899743]
[1759091822914,122.68,207.34,207.28,14.47317405]
[1759091823212,7.89,207.33,207.26,0.60262172]
[1759091823413,67.474,207.42,207.26,0.60262172]
[1759091823414,7.89,207.37,207.27,7.38]
[1759091823619,7.89,207.37,207.29,11.39582338]
[1759091823818,30.76,207.38,207.29,7.38]
[1759091824023,64.5,207.37,207.3,7.38]
[1759091824516,64.5,207.37,207.3,11.39582338]
[1759091824718,7.89,207.4,207.3,11.39582338]
[1759091825017,7.89,207.48,207.34,11.39582338]
[1759091825217,67.451,207.49,207.35,4.01582338]
[1759091825218,7.89,207.45,207.35,4.01582338]
[1759091825418,100.84,207.44,207.35,4.01582338]
[1759091825618,7.89,207.5,207.37,11.39582338]
[1759091825816,7.89,207.5,207.34,67.4985]
[1759091825817,7.89,207.5,207.39,7.38]
[1759091826013,7.89,207.5,207.4,7.38]
[1759091826219,7.89,207.5,207.4,11.39582338]
[1759091827222,7.89,207.5,207.42,7.38]
[1759091827620,7.89,207.56,207.43,4.01582338]
[1759091827827,85.52,207.55,207.45,4.01582338]
[1759091828318,7.89,207.56,207.45,7.38]
[1759091828526,7.89,207.56,207.47,11.39582338]
[1759091828917,7.89,207.56,207.47,7.38]
[1759091830520,7.89,207.56,207.44,4.01582338]
[1759091830521,67.4217,207.58,207.43,14.40736101]
[1759091830720,7.89,207.55,207.43,7.38]
[1759091831421,7.8,207.53,207.43,7.38]
[1759091831821,7.8,207.51,207.39,11.78582338]
[1759091832019,7.8,207.51,207.39,7.77]
[1759091833220,127.0955,207.52,207.39,7.77]
[1759091833221,4.3359,207.5,207.39,7.77]
[1759091833421,7.8,207.49,207.39,7.77]
[1759091834521,12.1362,207.49,207.39,7.77]
[1759091835229,130.42,207.49,207.39,7.77]
[1759091836934,197.8711,207.49,207.34,42.23594005]
[1759091837232,7.8,207.48,207.35,7.77]
[1759091838730,38.26,207.48,207.35,7.77]
[1759091838932,38.26,207.48,207.37,7.77]
[1759091838933,67.24,207.48,207.37,7.77]
[1759091839422,130.26,207.48,207.37,7.77]
[1759091840231,134.5963,207.48,207.37,7.77]
[1759091841033,7.8,207.45,207.37,7.77]
[1759091841434,7.8,207.45,207.33,51.21057962]
[1759091841628,7.8,207.45,207.33,11.78582338]
[1759091841829,7.8,207.45,207.34,7.77]
[1759091842030,7.8,207.45,207.34,11.78582338]
[1759091842937,7.8,207.52,207.38,4.01582338]
[1759091843135,72.2753005,207.61,207.41,4.4161818]
[1759091843335,7.8,207.6,207.43,7.77]
[1759091843642,7.5,207.58,207.43,7.77]
[1759091843841,7.5,207.55,207.43,11.74820658]
[1759091844036,7.5,207.55,207.44,7.27]
[1759091844231,7.5,207.55,207.44,11.24820658]
[1759091844542,7.5,207.55,207.44,7.27]
[1759091844943,4.3351,207.54,207.44,7.27]
[1759091845143,7.5,207.53,207.41,11.24820658]
[1759091845539,67.4348,207.54,207.41,11.24820658]
[1759091845740,89.52,207.53,207.41,7.27]
[1759091846134,7.5,207.49,207.41,7.27]
[1759091847539,7.5,207.53,207.41,7.27]
[1759091848043,7.5,207.53,207.42,3.97820658]
[1759091848243,7.5,207.53,207.43,7.27]
[1759091849846,7.5,207.6,207.43,7.27]
[1759091850052,68.4,207.59,207.43,7.27]
[1759091850248,7.5,207.6,207.46,7.27]
[1759091850851,7.5,207.6,207.46,3.97820658]
[1759091851050,7.5,207.6,207.47,7.27]
[1759091852653,11.8338,207.6,207.47,7.27]
[1759091853849,122.26,207.61,207.47,7.27]
[1759091853850,7.5,207.57,207.47,7.27]
[1759091854745,4.3346,207.56,207.47,7.27]
[1759091856455,7.5,207.57,207.47,7.27]
[1759091857550,11.8344,207.57,207.47,7.27]
[1759091858650,4.335,207.55,207.47,7.27]
[1759091859454,7.5,207.54,207.47,7.27]
[1759091865366,7.5,207.58,207.47,7.27]
[1759091866361,7.5,207.52,207.43,7.27]
[1759091866760,7.5,207.52,207.36,7.27]
[1759091867058,7.5,207.52,207.37,4.4161818]
[1759091867260,7.5,207.52,207.38,7.27]
[1759091867869,7.5,207.52,207.4,7.27]
[1759091868364,7.5,207.52,207.44,7.27]
[1759091875063,1.66465839,207.51,207.44,7.27]
[1759091875362,7.94,207.47,207.38,7.46]
[1759091875561,1.66465839,207.45,207.38,7.46]
[1759091876271,9.60465839,207.44,207.34,7.46]
[1759091877362,7.94,207.4,207.34,7.46]
[1759091881866,67.4291,207.56,207.31,350.96]
[1759091881867,75.3819,207.52,207.37,7.46]
[1759091882064,7.94,207.46,207.37,7.46]
[1759091882263,1.66465839,207.44,207.37,7.46]
[1759091882568,7.94,207.43,207.37,7.46]
[1759091883070,7.94,207.43,207.33,1.66465839]
[1759091883675,1.66465839,207.41,207.33,1.66465839]
[1759091883974,7.94,207.4,207.32,7.46]
[1759091884971,7.94,207.49,207.33,1.66465839]
[1759091885170,1.66465839,207.46,207.37,7.46]
[1759091885371,9.60465839,207.49,207.4,7.46]
[1759091886178,7.94,207.49,207.4,7.46]
[1759091886379,7.94,207.49,207.41,1.66465839]
[1759091886779,1.66465839,207.51,207.42,7.46]
[1759091887576,7.94,207.53,207.44,1.66465839]
[1759091887776,7.94,207.53,207.45,7.46]
[1759091888372,7.94,207.53,207.41,9.12465839]